Workbook

Sheet Лист1
A1: Школа | C1: ГБОУ "Корсабашская школа-интернат" | F1: Утвердил: | G1: должность | H1: Директор
A2: Типовое примерное меню приготавливаемых блюд | G2: фамилия | H2: Шарипов А.Н.
A3: Возрастная категория | E3: 7-11 лет | G3: дата | H3: 12 | I3: января | J3: 2026
H4: день | I4: месяц | J4: год
A5: Неделя | B5: День недели | C5: Прием пищи | D5: Раздел меню | E5: Блюда | F5: Вес блюда, г | G5: Белки | H5: Жиры | I5: Углеводы | J5: Калорийность | K5: № рецептуры | L5: Цена
A6: 1 | B6: 1 | C6: Завтрак | D6: гор.блюдо | E6: каша манная | F6: 150 | G6: 4.45 | H6: 6 | I6: 20.03 | J6: 151.9 | K6: 189
D8: гор.напиток | E8: какао с молоком | F8: 200 | G8: 3.6 | H8: 3 | I8: 20.3 | J8: 123.1 | K8: 382
D9: хлеб | E9: хлеб пшеничный | F9: 100 | G9: 7.7 | H9: 2.4 | I9: 53.4 | J9: 254
D10: фрукты
D11: масло | E11: масло | F11: 10 | G11: 0.1 | H11: 8.3 | I11: 0.1 | J11: 75 | K11: 13
D12: сыр | E12: сыр | F12: 12 | G12: 2.76 | H12: 3.56 | I12: 0 | J12: 43.6 | K12: 14
D13: итого | F13: =SUM(F6:F12) -> 472 | G13: =SUM(G6:G12) -> 18.61 | H13: =SUM(H6:H12) -> 23.26 | I13: =SUM(I6:I12) -> 93.83 | J13: =SUM(J6:J12) -> 647.6 | L13: =SUM(L6:L12) -> 0
A14: =A6 -> 1 | B14: =B6 -> 1 | C14: Завтрак 2 | D14: фрукты
D17: итого | F17: =SUM(F14:F16) -> 0 | G17: =SUM(G14:G16) -> 0 | H17: 0 | I17: 0 | J17: 0 | L17: 0
A18: =A6 -> 1 | B18: =B6 -> 1 | C18: Обед | D18: закуска | E18: салат из моркови с яблоками | F18: 100 | G18: 1.1 | H18: 5.1 | I18: 8.7 | J18: 85.5 | K18: 71
D19: 1 блюдо | E19: борщ со сметаной | F19: 250 | G19: 27 | H19: 4.1 | I19: 89 | J19: 83 | K19: 75
D20: 2 блюдо | E20: плов из говядины | F20: 150 | G20: 8.61 | H20: 8.56 | I20: 12.62 | J20: 162.3 | K20: 265
D21: гарнир
D22: напиток | E22: компот из сухофруктов | F22: 200 | G22: 0 | H22: 0 | I22: 14.6 | J22: 58.1 | K22: 199
D23: хлеб бел.
D24: хлеб черн. | E24: хлеб ржаной | F24: 100 | G24: 4.4 | H24: 0.6 | I24: 28.2 | J24: 136 | K24: 505
D27: итого | F27: =SUM(F18:F26) -> 800 | G27: =SUM(G18:G26) -> 41.11 | H27: 18.36 | I27: 153.12 | J27: 524.9 | L27: 0
A28: =A6 -> 1 | B28: =B6 -> 1 | C28: Полдник | D28: булочное | E28: булочка | F28: 50 | G28: 5.75 | H28: 4.71 | I28: 13.32 | J28: 183.5
D29: напиток | E29: сок | F29: 200 | G29: 1 | H29: 0.2 | I29: 198 | J29: 86 | K29: 442
D30: фрукты | E30: фрукты | F30: 300 | G30: 1.8 | H30: 0.4 | I30: 16.5 | J30: 87.6 | K30: 33
D31: сосиски | E31: сосиски отварные | F31: 90 | G31: 10 | H31: 21.8 | I31: 0.36 | J31: 237.8 | K31: 254
D32: итого | F32: =SUM(F28:F31) -> 640 | G32: =SUM(G28:G31) -> 18.55 | H32: 27.11 | I32: 228.18 | J32: 594.9 | L32: 0
A33: =A6 -> 1 | B33: =B6 -> 1 | C33: Ужин | D33: гор.блюдо | E33: курица тушеная в сметанном соусе | F33: 90 | G33: 27.9 | H33: 20.7 | I33: 6.48 | J33: 324 | K33: 312
D34: гарнир | E34: картофельное пюре | F34: 150 | G34: 3.5 | H34: 7.3 | I34: 22.9 | J34: 171.2 | K34: 125
D35: напиток | E35: чай с сахаром | F35: 200 | G35: 0.22 | H35: 0.11 | I35: 16.2 | J35: 64.8 | K35: 430
D36: хлеб | E36: хлеб пшеничный | F36: 50 | G36: 3.8 | H36: 1.2 | I36: 26.7 | J36: 127
D37: масло | E37: масло | F37: 10 | G37: 0.1 | H37: 8.3 | I37: 0.1 | J37: 75
D39: итого | F39: =SUM(F33:F38) -> 500 | G39: =SUM(G33:G38) -> 35.52 | H39: 37.61 | I39: 72.38 | J39: 762 | L39: 0
A40: =A6 -> 1 | B40: =B6 -> 1 | C40: Ужин 2 | D40: кисломол. | E40: кисломолочка | F40: 200 | G40: 6 | H40: 2 | I40: 8.4 | J40: 80 | K40: 435
D41: булочное
D42: напиток
D43: фрукты
D44: конд. изд. | E44: кондитерка | F44: 30 | G44: 0.8 | H44: 1 | I44: 23.2 | J44: 106.2
D46: итого | F46: =SUM(F40:F45) -> 230 | G46: 6.8 | H46: 3 | I46: 31.6 | J46: 186.2 | L46: 0
A47: =A6 -> 1 | B47: =B6 -> 1 | C47: Итого за день: | F47: =F13+F17+F27+F32+F39+F46 -> 2642 | G47: =G13+G17+G27+G32+G39+G46 -> 120.59 | H47: 109.34 | I47: 579.11 | J47: 2715.6 | L47: =L13+L17+L27+L32+L39+L46 -> 0
A48: 1 | B48: 2 | C48: Завтрак | D48: гор.блюдо | E48: суп молочный рисовый | F48: 150 | G48: 2.75 | H48: 2.87 | I48: 11.79 | J48: 84.39 | K48: 113
D50: гор.напиток | E50: кофейный напиток | F50: 200 | G50: 1.5 | H50: 1.3 | I50: 22.4 | J50: 107 | K50: 432
D51: хлеб | E51: хлеб пшеничный | F51: 100 | G51: 7.7 | H51: 2.4 | I51: 53.4 | J51: 254
D52: фрукты
D53: масло | E53: масло | F53: 10 | G53: 0.1 | H53: 8.3 | I53: 0.1 | J53: 75 | K53: 13
D54: сыр | E54: сыр | F54: 12 | G54: 2.76 | H54: 3.56 | I54: 0 | J54: 43.6 | K54: 14
D55: итого | F55: =SUM(F48:F54) -> 472 | G55: =SUM(G48:G54) -> 14.81 | H55: =SUM(H48:H54) -> 18.43 | I55: =SUM(I48:I54) -> 87.69 | J55: =SUM(J48:J54) -> 563.99 | L55: =SUM(L48:L54) -> 0
A56: =A48 -> 1 | B56: =B48 -> 2 | C56: Завтрак 2 | D56: фрукты
D59: итого | F59: =SUM(F56:F58) -> 0 | G59: =SUM(G56:G58) -> 0 | H59: =SUM(H56:H58) -> 0 | I59: =SUM(I56:I58) -> 0 | J59: =SUM(J56:J58) -> 0 | L59: 0
A60: =A48 -> 1 | B60: =B48 -> 2 | C60: Обед | D60: закуска | E60: винегрет овощной | F60: 100 | G60: 1.4 | H60: 10.1 | I60: 6.6 | J60: 123 | K60: 51
D61: 1 блюдо | E61: рассольник | F61: 250 | G61: 2.9 | H61: 4.2 | I61: 13.9 | J61: 105 | K61: 89
D62: 2 блюдо | E62: гречка | F62: 150 | G62: 5.55 | H62: 4.5 | I62: 25.2 | J62: 163.5 | K62: 181
D63: гарнир | E63: котлеты рыбные | F63: 90 | G63: 14.22 | H63: 13.08 | I63: 13.5 | J63: 234 | K63: 239
D64: напиток | E64: компот из сухофруктов | F64: 200 | G64: 0 | H64: 0 | I64: 14.6 | J64: 58.1 | K64: 199
D65: хлеб бел.
D66: хлеб черн. | E66: хлеб ржаной | F66: 100 | G66: 4.4 | H66: 0.6 | I66: 28.2 | J66: 136 | K66: 505
D69: итого | F69: =SUM(F60:F68) -> 890 | G69: =SUM(G60:G68) -> 28.47 | H69: =SUM(H60:H68) -> 32.48 | I69: =SUM(I60:I68) -> 102 | J69: =SUM(J60:J68) -> 819.6 | L69: 0
A70: =A48 -> 1 | B70: =B48 -> 2 | C70: Полдник | D70: булочное
D71: напиток | E71: сок | F71: 200 | G71: 1 | H71: 0.2 | I71: 198 | J71: 86 | K71: 442
D72: конд. изд. | E72: творожный пудинг | F72: 90 | G72: 20.1 | H72: 16.3 | I72: 22.2 | J72: 323.2 | K72: 234
D73: фрукты | E73: фрукты | F73: 300 | G73: 1.8 | H73: 0.4 | I73: 16.5 | J73: 87.6 | K73: 33
D74: итого | F74: =SUM(F70:F73) -> 590 | G74: =SUM(G70:G73) -> 22.9 | H74: =SUM(H70:H73) -> 16.9 | I74: =SUM(I70:I73) -> 236.7 | J74: =SUM(J70:J73) -> 496.8 | L74: =SUM(L67:L73) -> 0
A75: =A48 -> 1 | B75: =B48 -> 2 | C75: Ужин | D75: гор.блюдо | E75: жаркое по домашнему | F75: 150 | G75: 16.89 | H75: 16.1 | I75: 13.4 | J75: 267.87 | K75: 258
D76: гарнир
D77: напиток | E77: чай с сахаром | F77: 200 | G77: 0.22 | H77: 0.11 | I77: 16.2 | J77: 64.8 | K77: 430
D78: хлеб | E78: хлеб пшеничный | F78: 50 | G78: 3.8 | H78: 1.2 | I78: 26.7 | J78: 127
D79: масло | E79: масло | F79: 10 | G79: 0.1 | H79: 8.3 | I79: 0.1 | J79: 75 | K79: 13
D80: булочное | E80: булочка | F80: 50 | G80: 5.75 | H80: 4.71 | I80: 13.32 | J80: 183.5
D81: итого | F81: =SUM(F75:F80) -> 460 | G81: =SUM(G75:G80) -> 26.76 | H81: =SUM(H75:H80) -> 30.42 | I81: =SUM(I75:I80) -> 69.72 | J81: =SUM(J75:J80) -> 718.17 | L81: 0
A82: =A48 -> 1 | B82: =B48 -> 2 | C82: Ужин 2 | D82: кисломол. | E82: кисломолочка | F82: 200 | G82: 6 | H82: 2 | I82: 8.4 | J82: 80 | K82: 435
D83: булочное
D84: напиток
D85: фрукты
D86: конд. изд. | E86: кондитерка | F86: 30 | G86: 0.8 | H86: 1 | I86: 23.2 | J86: 106.2
D88: итого | F88: =SUM(F82:F87) -> 230 | G88: 6.8 | H88: 3 | I88: 31.6 | J88: 186.2 | L88: 0
A89: =A48 -> 1 | B89: =B48 -> 2 | C89: Итого за день: | F89: =F55+F59+F69+F74+F81+F88 -> 2642 | G89: =G55+G59+G69+G74+G81+G88 -> 99.74 | H89: =H55+H59+H69+H74+H81+H88 -> 101.23 | I89: =I55+I59+I69+I74+I81+I88 -> 527.71 | J89: =J55+J59+J69+J74+J81+J88 -> 2784.76 | L89: =L55+L59+L69+L74+L81+L88 -> 0
A90: 1 | B90: 3 | C90: Завтрак | D90: гор.блюдо | E90: сосиски | F90: 90 | G90: 10 | H90: 21.8 | I90: 0.36 | J90: 237.8 | K90: 254
D91: гарнир | E91: омлет | F91: 150 | G91: 14.39 | H91: 23.74 | I91: 2.72 | J91: 282.17 | K91: 214
D92: гор.напиток | E92: какао с молоком | F92: 200 | G92: 3.6 | H92: 3 | I92: 20.3 | J92: 123.1 | K92: 382
D93: хлеб | E93: хлеб пшеничный | F93: 100 | G93: 7.7 | H93: 2.4 | I93: 53.4 | J93: 254
D94: фрукты
D95: масло | E95: масло | F95: 10 | G95: 0.1 | H95: 8.3 | I95: 0.1 | J95: 75 | K95: 13
D96: сыр | E96: сыр | F96: 12 | G96: 2.76 | H96: 3.56 | I96: 0 | J96: 43.6 | K96: 14
D97: итого | F97: =SUM(F90:F96) -> 562 | G97: =SUM(G90:G96) -> 38.55 | H97: =SUM(H90:H96) -> 62.8 | I97: =SUM(I90:I96) -> 76.88 | J97: =SUM(J90:J96) -> 1015.67 | L97: 0
A98: =A90 -> 1 | B98: =B90 -> 3 | C98: Завтрак 2 | D98: фрукты
D101: итого | F101: =SUM(F98:F100) -> 0 | G101: =SUM(G98:G100) -> 0 | H101: =SUM(H98:H100) -> 0 | I101: =SUM(I98:I100) -> 0 | J101: =SUM(J98:J100) -> 0 | L101: 0
A102: =A90 -> 1 | B102: =B90 -> 3 | C102: Обед | D102: закуска | E102: салат из капусты | F102: 100 | G102: 1.6 | H102: 5.1 | I102: 6.9 | J102: 80 | K102: 35
D103: 1 блюдо | E103: суп гороховый | F103: 250 | G103: 6.4 | H103: 4.5 | I103: 18.6 | J103: 141 | K103: 99
D104: 2 блюдо | E104: азу | F104: 150 | G104: 13.35 | H104: 15 | I104: 13.28 | J104: 241.5 | K104: 260
D105: гарнир
D106: напиток | E106: компот из сухофруктов | F106: 200 | G106: 0 | H106: 0 | I106: 14.6 | J106: 58.1 | K106: 199
D107: хлеб бел.
D108: хлеб черн. | E108: хлеб ржаной | F108: 100 | G108: 4.4 | H108: 0.6 | I108: 28.2 | J108: 136 | K108: 505
D111: итого | F111: =SUM(F102:F110) -> 800 | G111: =SUM(G102:G110) -> 25.75 | H111: =SUM(H102:H110) -> 25.2 | I111: =SUM(I102:I110) -> 81.58 | J111: =SUM(J102:J110) -> 656.6 | L111: 0
A112: =A90 -> 1 | B112: =B90 -> 3 | C112: Полдник | D112: булочное | E112: оладьи с повидлом | F112: 90 | G112: 7.8 | H112: 11.84 | I112: 45.34 | J112: 319.7 | K112: 444
D113: напиток | E113: сок | F113: 200 | G113: 1 | H113: 0.2 | I113: 198 | J113: 86 | K113: 442
D114: фрукты | E114: фрукты | F114: 300 | G114: 1.8 | H114: 0.4 | I114: 16.5 | J114: 87.6 | K114: 33
D116: итого | F116: =SUM(F112:F115) -> 590 | G116: =SUM(G112:G115) -> 10.6 | H116: =SUM(H112:H115) -> 12.44 | I116: =SUM(I112:I115) -> 259.84 | J116: =SUM(J112:J115) -> 493.3 | L116: =SUM(L109:L115) -> 0
A117: =A90 -> 1 | B117: =B90 -> 3 | C117: Ужин | D117: гор.блюдо | E117: кнели куриные, соус томатный | F117: 240 | G117: 34.3 | H117: 21.3 | I117: 63.5 | J117: 300.7 | K117: 301
D118: гарнир | E118: отварные макароны | F118: 150 | G118: 5.6 | H118: 6.7
D119: напиток | E119: чай с сахаром | F119: 200 | G119: 0.22 | H119: 0.11 | I119: 16.2 | J119: 64.8 | K119: 430
D120: хлеб | E120: хлеб пшеничный | F120: 50 | G120: 3.8 | H120: 1.2 | I120: 26.7 | J120: 127
D121: закуска | E121: салат из моркови с яблоками | F121: 100 | G121: 1.1 | H121: 5.1 | I121: 8.7 | J121: 85.5 | K121: 71
D122: масло | E122: масло | F122: 10 | G122: 0.1 | H122: 8.3 | I122: 0.1 | J122: 75 | K122: 13
D123: булочное | E123: булочка | F123: 50 | G123: 5.75 | H123: 4.71 | I123: 13.32 | J123: 183.5
D124: итого | F124: =SUM(F117:F122) -> 750 | G124: =SUM(G117:G122) -> 45.12 | H124: =SUM(H117:H122) -> 42.71 | I124: =SUM(I117:I122) -> 115.2 | J124: =SUM(J117:J122) -> 653 | L124: 0
A125: =A90 -> 1 | B125: =B90 -> 3 | C125: Ужин 2 | D125: кисломол. | E125: кисломолочка | F125: 200 | G125: 6 | H125: 2 | I125: 8.4 | J125: 80 | K125: 435
D126: булочное
D127: напиток
D128: фрукты
D129: конд. изд. | E129: кондитерка | F129: 30 | G129: 0.8 | H129: 1 | I129: 23.2 | J129: 106.2
D131: итого | F131: =SUM(F125:F130) -> 230 | G131: =SUM(G125:G130) -> 6.8 | H131: =SUM(H125:H130) -> 3 | I131: =SUM(I125:I130) -> 31.6 | J131: =SUM(J125:J130) -> 186.2 | L131: 0
A132: =A90 -> 1 | B132: =B90 -> 3 | C132: Итого за день: | F132: =F97+F101+F111+F116+F124+F131 -> 2932 | G132: =G97+G101+G111+G116+G124+G131 -> 126.82 | H132: =H97+H101+H111+H116+H124+H131 -> 146.15 | I132: =I97+I101+I111+I116+I124+I131 -> 565.1 | J132: =J97+J101+J111+J116+J124+J131 -> 3004.77 | L132: =L97+L101+L111+L116+L124+L131 -> 0
A133: 1 | B133: 4 | C133: Завтрак | D133: гор.блюдо | E133: каша Дружба | F133: 150 | G133: 5.8 | H133: 9.2 | I133: 30.6 | J133: 229.6 | K133: 190
D135: гор.напиток | E135: кофейный напиток | F135: 200 | G135: 1.5 | H135: 1.3 | I135: 22.4 | J135: 107 | K135: 432
D136: хлеб | E136: хлеб пшеничный | F136: 100 | G136: 7.7 | H136: 2.4 | I136: 53.4 | J136: 254
D137: фрукты | E137: фрукты | F137: 100 | G137: 0.4 | H137: 0.4 | I137: 8.3 | J137: 40.2 | K137: 33
D138: масло | E138: масло | F138: 10 | G138: 0.1 | H138: 8.3 | I138: 0.1 | J138: 75 | K138: 13
D139: яйцо | E139: яйцо | F139: 40 | G139: 5.1 | H139: 4.6 | I139: 0.3 | J139: 63 | K139: 213
D140: сыр | E140: сыр | F140: 12 | G140: 2.76 | H140: 3.56 | I140: 0 | J140: 43.6 | K140: 14
D141: итого | F141: =SUM(F133:F140) -> 612 | G141: =SUM(G133:G140) -> 23.36 | H141: =SUM(H133:H140) -> 29.76 | I141: =SUM(I133:I140) -> 115.1 | J141: =SUM(J133:J140) -> 812.4 | L141: =SUM(L133:L140) -> 0
A142: =A133 -> 1 | B142: =B133 -> 4 | C142: Завтрак 2 | D142: фрукты
D145: итого | F145: =SUM(F142:F144) -> 0 | G145: =SUM(G142:G144) -> 0 | H145: =SUM(H142:H144) -> 0 | I145: =SUM(I142:I144) -> 0 | J145: =SUM(J142:J144) -> 0 | L145: =SUM(L142:L144) -> 0
A146: =A133 -> 1 | B146: =B133 -> 4 | C146: Обед | D146: закуска | E146: салат из свеклы | F146: 100 | G146: 1.4 | H146: 5.9 | I146: 8.1 | J146: 91 | K146: 33
D147: 1 блюдо | E147: суп рыбный | F147: 250 | G147: 7.8 | H147: 4.5 | I147: 21.9 | J147: 159.9 | K147: 87
D148: 2 блюдо | E148: котлеты из говядины | F148: 90 | G148: 134.7 | H148: 13.82 | I148: 11.33 | J148: 224.56 | K148: 272
D149: гарнир | E149: картофельное пюре | F149: 150 | G149: 3.5 | H149: 7.3 | I149: 22.9 | J149: 171.2 | K149: 125
D150: напиток | E150: компот из сухофруктов | F150: 200 | G150: 0 | H150: 0 | I150: 14.6 | J150: 58.1 | K150: 199
D151: хлеб бел.
D152: хлеб черн. | E152: хлеб ржаной | F152: 100 | G152: 4.4 | H152: 0.6 | I152: 28.2 | J152: 136 | K152: 505
D155: итого | F155: =SUM(F146:F154) -> 890 | G155: =SUM(G146:G154) -> 151.8 | H155: =SUM(H146:H154) -> 32.12 | I155: =SUM(I146:I154) -> 107.03 | J155: =SUM(J146:J154) -> 840.76 | L155: =SUM(L146:L154) -> 0
A156: =A133 -> 1 | B156: =B133 -> 4 | C156: Полдник | D156: булочное
D157: напиток | E157: сок | F157: 200 | G157: 1 | H157: 0.2 | I157: 198 | J157: 86 | K157: 442
D158: десерт | E158: запеканка из творога | F158: 90 | G158: 14.33 | H158: 7.34 | I158: 13.04 | J158: 178.87 | K158: 224
D159: фрукты | E159: фрукты | F159: 200 | G159: 0.8 | H159: 0.8 | I159: 16.6 | J159: 80.4 | K159: 33
D160: итого | F160: =SUM(F156:F159) -> 490 | G160: =SUM(G156:G159) -> 16.13 | H160: =SUM(H156:H159) -> 8.34 | I160: =SUM(I156:I159) -> 227.64 | J160: =SUM(J156:J159) -> 345.27 | L160: =SUM(L153:L159) -> 0
A161: =A133 -> 1 | B161: =B133 -> 4 | C161: Ужин | D161: гор.блюдо | E161: отварная курица | F161: 90 | G161: 25.38 | H161: 6.48 | I161: 0.2 | J161: 163.8 | K161: 307
D162: гарнир | E162: гречка | F162: 150 | G162: 5.55 | H162: 4.5 | I162: 25.2 | J162: 163.5 | K162: 181
D163: напиток | E163: чай с сахаром | F163: 200 | G163: 0.22 | H163: 0.11 | I163: 16.2 | J163: 64.8 | K163: 430
D164: хлеб | E164: хлеб пшеничный | F164: 50 | G164: 3.8 | H164: 1.2 | I164: 26.7 | J164: 127
D165: масло | E165: масло | F165: 10 | G165: 0.1 | H165: 8.3 | I165: 0.1 | J165: 75 | K165: 13
D166: булочное | E166: булочка | F166: 50 | G166: 5.75 | H166: 4.71 | I166: 13.32 | J166: 183.5
D167: итого | F167: =SUM(F161:F166) -> 550 | G167: =SUM(G161:G166) -> 40.8 | H167: =SUM(H161:H166) -> 25.3 | I167: =SUM(I161:I166) -> 81.72 | J167: =SUM(J161:J166) -> 777.6 | L167: =SUM(L161:L166) -> 0
A168: =A133 -> 1 | B168: =B133 -> 4 | C168: Ужин 2 | D168: кисломол. | E168: кисломолочка | F168: 200 | G168: 6 | H168: 2 | I168: 8.4 | J168: 80 | K168: 435
D169: булочное
D170: напиток
D171: фрукты
D172: конд. изд. | E172: кондитерка | F172: 30 | G172: 0.8 | H172: 1 | I172: 23.2 | J172: 106.2
D174: итого | F174: =SUM(F168:F173) -> 230 | G174: =SUM(G168:G173) -> 6.8 | H174: =SUM(H168:H173) -> 3 | I174: =SUM(I168:I173) -> 31.6 | J174: =SUM(J168:J173) -> 186.2 | L174: =SUM(L168:L173) -> 0
A175: =A133 -> 1 | B175: =B133 -> 4 | C175: Итого за день: | F175: =F141+F145+F155+F160+F167+F174 -> 2772 | G175: =G141+G145+G155+G160+G167+G174 -> 238.89 | H175: =H141+H145+H155+H160+H167+H174 -> 98.52 | I175: =I141+I145+I155+I160+I167+I174 -> 563.09 | J175: =J141+J145+J155+J160+J167+J174 -> 2962.23 | L175: =L141+L145+L155+L160+L167+L174 -> 0
A176: 1 | B176: 5 | C176: Завтрак | D176: гор.блюдо | E176: каша пшенная | F176: 150 | G176: 5.43 | H176: 6.69 | I176: 23.97 | J176: 177.5 | K176: 189
D178: гор.напиток | E178: какао с молоком | F178: 200 | G178: 3.6 | H178: 3 | I178: 20.3 | J178: 123.1 | K178: 382
D179: хлеб | E179: хлеб пшеничный | F179: 100 | G179: 7.7 | H179: 2.4 | I179: 53.4 | J179: 254
D180: фрукты | E180: фрукты | F180: 100 | G180: 0.4 | H180: 0.4 | I180: 8.3 | J180: 40.2 | K180: 33
D181: масло | E181: масло | F181: 10 | G181: 0.1 | H181: 8.3 | I181: 0.1 | J181: 75 | K181: 13
D182: яйцо | E182: яйцо | F182: 40 | G182: 5.1 | H182: 4.6 | I182: 0.3 | J182: 63 | K182: 213
D183: сыр | E183: сыр | F183: 12 | G183: 2.76 | H183: 3.56 | I183: 0 | J183: 43.6 | K183: 14
D184: итого | F184: =SUM(F176:F183) -> 612 | G184: =SUM(G176:G183) -> 25.09 | H184: =SUM(H176:H183) -> 28.95 | I184: =SUM(I176:I183) -> 106.37 | J184: =SUM(J176:J183) -> 776.4 | L184: =SUM(L176:L183) -> 0
A185: =A176 -> 1 | B185: =B176 -> 5 | C185: Завтрак 2 | D185: фрукты
D188: итого | F188: =SUM(F185:F187) -> 0 | G188: =SUM(G185:G187) -> 0 | H188: =SUM(H185:H187) -> 0 | I188: =SUM(I185:I187) -> 0 | J188: =SUM(J185:J187) -> 0 | L188: =SUM(L185:L187) -> 0
A189: =A176 -> 1 | B189: =B176 -> 5 | C189: Обед | D189: закуска | E189: винегрет | F189: 100 | G189: 1.41 | H189: 10.15 | I189: 6.53 | J189: 123.62 | K189: 51
D190: 1 блюдо | E190: суп с макаронными изделеями и картофелем | F190: 250 | G190: 3.6 | H190: 3 | I190: 27 | J190: 150.3 | K190: 112
D191: 2 блюдо | E191: жаркое по домашнему | F191: 150 | G191: 16.89 | H191: 16.1 | I191: 13.4 | J191: 265.87 | K191: 258
D192: гарнир
D193: напиток | E193: компот из сухофруктов | F193: 200 | G193: 0 | H193: 0 | I193: 14.6 | J193: 58.1 | K193: 199
D194: хлеб бел.
D195: хлеб черн. | E195: хлеб ржаной | F195: 100 | G195: 4.4 | H195: 0.6 | I195: 28.2 | J195: 136 | K195: 505
D198: итого | F198: =SUM(F189:F197) -> 800 | G198: =SUM(G189:G197) -> 26.3 | H198: =SUM(H189:H197) -> 29.85 | I198: =SUM(I189:I197) -> 89.73 | J198: =SUM(J189:J197) -> 733.89 | L198: =SUM(L189:L197) -> 0
A199: =A176 -> 1 | B199: =B176 -> 5 | C199: Полдник | D199: булочное | E199: пирожки печеные с капустой | F199: 90 | G199: 4.13 | H199: 3.59 | I199: 24.06 | J199: 145.4 | K199: 451
D200: напиток | E200: сок | F200: 200 | G200: 1 | H200: 0.2 | I200: 198 | J200: 86 | K200: 442
D201: фрукты | E201: фрукты | F201: 200 | G201: 0.8 | H201: 0.8 | I201: 16.6 | J201: 80.4 | K201: 33
D203: итого | F203: =SUM(F199:F202) -> 490 | G203: =SUM(G199:G202) -> 5.93 | H203: =SUM(H199:H202) -> 4.59 | I203: =SUM(I199:I202) -> 238.66 | J203: =SUM(J199:J202) -> 311.8 | L203: =SUM(L196:L202) -> 0
A204: =A176 -> 1 | B204: =B176 -> 5 | C204: Ужин | D204: гор.блюдо | E204: рыба с овощами | F204: 90 | G204: 0.3 | H204: 3.6 | I204: 1.3 | J204: 38.9 | K204: 267
D205: гарнир | E205: капуста тушеная | F205: 150 | G205: 3.84 | H205: 6.24 | I205: 108 | J205: 115.2 | K205: 131
D206: напиток | E206: чай с сахаром | F206: 200 | G206: 0.22 | H206: 0.11 | I206: 16.2 | J206: 64.8 | K206: 430
D207: хлеб | E207: хлеб пшеничный | F207: 50 | G207: 3.8 | H207: 1.2 | I207: 26.7 | J207: 127
D208: масло | E208: масло | F208: 10 | G208: 0.1 | H208: 8.3 | I208: 0.1 | J208: 75 | K208: 13
D209: булочное | E209: булочка | F209: 50 | G209: 5.75 | H209: 4.71 | I209: 13.32 | J209: 183.5
D210: итого | F210: =SUM(F204:F209) -> 550 | G210: =SUM(G204:G209) -> 14.01 | H210: =SUM(H204:H209) -> 24.16 | I210: =SUM(I204:I209) -> 165.62 | J210: =SUM(J204:J209) -> 604.4 | L210: =SUM(L204:L209) -> 0
A211: =A176 -> 1 | B211: =B176 -> 5 | C211: Ужин 2 | D211: кисломол. | E211: кисломолочка | F211: 200 | G211: 6 | H211: 2 | I211: 8.4 | J211: 80 | K211: 435
D212: булочное
D213: напиток
D214: фрукты
D215: конд. изд. | E215: кондитерка | F215: 30 | G215: 0.8 | H215: 1 | I215: 23.2 | J215: 106.2
D217: итого | F217: =SUM(F211:F216) -> 230 | G217: =SUM(G211:G216) -> 6.8 | H217: =SUM(H211:H216) -> 3 | I217: =SUM(I211:I216) -> 31.6 | J217: =SUM(J211:J216) -> 186.2 | L217: =SUM(L211:L216) -> 0
A218: =A176 -> 1 | B218: =B176 -> 5 | C218: Итого за день: | F218: =F184+F188+F198+F203+F210+F217 -> 2682 | G218: =G184+G188+G198+G203+G210+G217 -> 78.13 | H218: =H184+H188+H198+H203+H210+H217 -> 90.55 | I218: =I184+I188+I198+I203+I210+I217 -> 631.98 | J218: =J184+J188+J198+J203+J210+J217 -> 2612.69 | L218: =L184+L188+L198+L203+L210+L217 -> 0
A219: 2 | B219: 1 | C219: Завтрак | D219: гор.блюдо | E219: макароны с сыром | F219: 150 | G219: 7.1 | H219: 15.9 | I219: 27.1 | J219: 281 | K219: 210
D221: гор.напиток | E221: кофейный напиток | F221: 200 | G221: 1.5 | H221: 1.3 | I221: 22.4 | J221: 107 | K221: 432
D222: хлеб | E222: хлеб пшеничный | F222: 100 | G222: 7.7 | H222: 2.4 | I222: 53.4 | J222: 254
D223: фрукты
D224: масло | E224: масло | F224: 10 | G224: 0.1 | H224: 8.3 | I224: 0.1 | J224: 75 | K224: 13
D225: яйцо | E225: яйцо | F225: 40 | G225: 5.1 | H225: 4.6 | I225: 0.3 | J225: 63 | K225: 213
D226: итого | F226: =SUM(F219:F225) -> 500 | G226: =SUM(G219:G225) -> 21.5 | H226: =SUM(H219:H225) -> 32.5 | I226: =SUM(I219:I225) -> 103.3 | J226: =SUM(J219:J225) -> 780 | L226: =SUM(L219:L225) -> 0
A227: =A219 -> 2 | B227: =B219 -> 1 | C227: Завтрак 2 | D227: фрукты
D230: итого | F230: =SUM(F227:F229) -> 0 | G230: =SUM(G227:G229) -> 0 | H230: =SUM(H227:H229) -> 0 | I230: =SUM(I227:I229) -> 0 | J230: =SUM(J227:J229) -> 0 | L230: =SUM(L227:L229) -> 0
A231: =A219 -> 2 | B231: =B219 -> 1 | C231: Обед | D231: закуска | E231: салат витаминный | F231: 100 | G231: 1.2 | H231: 5.2 | I231: 9.5 | J231: 90 | K231: 41
D232: 1 блюдо | E232: рассольник | F232: 250 | G232: 2.9 | H232: 4.2 | I232: 13.9 | J232: 105 | K232: 89
D233: 2 блюдо | E233: гуляш | F233: 90 | G233: 28.26 | H233: 28.62 | I233: 5.58 | J233: 392.4 | K233: 259
D234: гарнир | E234: картофельное пюре | F234: 150 | G234: 3.5 | H234: 7.3 | I234: 22.9 | J234: 171.2 | K234: 125
D235: напиток | E235: компот из сухофруктов | F235: 200 | G235: 0 | H235: 0 | I235: 14.6 | J235: 58.1 | K235: 199
... 165 more rows

Sheet Лист2
A1: какао с молоком | B1: 200 | C1: 3.6 | D1: 3 | E1: 20.3 | F1: 123.1 | G1: 382
A2: хлеб пшеничный | B2: 100 | C2: 7.7 | D2: 2.4 | E2: 53.4 | F2: 254
A3: фрукты | B3: 100 | C3: 0.4 | D3: 0.4 | E3: 8.3 | F3: 40.2 | G3: 33
A4: масло | B4: масло | C4: 10 | D4: 0.1 | E4: 8.3 | F4: 0.1 | G4: 75 | H4: 13
A5: сыр | B5: сыр | C5: 12 | D5: 2.76 | E5: 3.56 | F5: 0 | G5: 43.6 | H5: 14
A6: компот из сухофруктов | B6: 200 | C6: 0 | D6: 0 | E6: 14.6 | F6: 58.1 | G6: 199
A7: хлеб ржаной | B7: 150 | C7: 6.6 | D7: 0.9 | E7: 42.4 | F7: 204 | G7: 505
A8: булочка | B8: 50 | C8: 5.75 | D8: 4.71 | E8: 13.32 | F8: 183.5
A9: сок | B9: 200 | C9: 1 | D9: 0.2 | E9: 198 | F9: 86 | G9: 442
A10: фрукты | B10: 200 | C10: 0.8 | D10: 0.8 | E10: 16.6 | F10: 80.4 | G10: 33
A11: сосиски отварные | B11: 90 | C11: 10 | D11: 21.8 | E11: 0.36 | F11: 237.8 | G11: 254
A12: чай с сахаром | B12: 200 | C12: 0.22 | D12: 0.11 | E12: 16.2 | F12: 64.8 | G12: 430
A13: кисломолочка | B13: 200 | C13: 6 | D13: 2 | E13: 8.4 | F13: 80 | G13: 435
A14: кондитерка | B14: 30 | C14: 0.8 | D14: 1 | E14: 23.2 | F14: 106.2
A15: кофейный напиток | B15: 200 | C15: 1.5 | D15: 1.3 | E15: 22.4 | F15: 107 | G15: 432
A16: кисель | B16: 200 | C16: 0.1 | D16: 0.1 | E16: 27.9 | F16: 113 | G16: 411
A17: фрукты | B17: 300 | C17: 1.8 | D17: 0.4 | E17: 16.5 | F17: 87.6 | G17: 33
A18: картофельное пюре | B18: 150 | C18: 3.5 | D18: 7.3 | E18: 22.9 | F18: 171.2 | G18: 125
A19: яйцо | B19: яйцо | C19: 40 | D19: 5.1 | E19: 4.6 | F19: 0.3 | G19: 63 | H19: 213
A20: конд. изд. | B20: кондитерка | C20: 30 | D20: 0.8 | E20: 1 | F20: 23.2 | G20: 106.2
